[Event "Late-Titled-Tuesday-Blitz-March-05-2024"]
[Site "Chess.com"]
[Date "2024.03.05"]
[Round "6"]
[White "stollenmonster"]
[Black "LikeWater"]
[Result "1-0"]
[WhiteElo "2878"]
[BlackElo "2696"]
[TimeControl "180+1"]
[EndTime "15:05:54 PST"]
[Termination "stollenmonster won by resignation"]

1. e4 {[%clk 0:03:00.9]} 1... c6 {[%clk 0:02:57.4]} 2. d4 {[%clk 0:03:00]} 2...
d5 {[%clk 0:02:57.8]} 3. e5 {[%clk 0:03:00.5]} 3... Bf5 {[%clk 0:02:57.9]} 4.
Ne2 {[%clk 0:03:00.3]} 4... h5 {[%clk 0:02:49]} 5. Ng3 {[%clk 0:03:00.6]} 5...
Bg6 {[%clk 0:02:47.6]} 6. e6 {[%clk 0:03:00.8]} 6... Qd6 {[%clk 0:02:43.2]} 7.
exf7+ {[%clk 0:02:59.8]} 7... Bxf7 {[%clk 0:02:44.1]} 8. Bd3 {[%clk 0:02:58.4]}
8... e5 {[%clk 0:02:39.9]} 9. Nf5 {[%clk 0:02:42.9]} 9... Qe6 {[%clk 0:02:34]}
10. dxe5 {[%clk 0:02:43.2]} 10... Qxe5+ {[%clk 0:02:34.4]} 11. Be3 {[%clk
0:02:42.8]} 11... g6 {[%clk 0:02:18.6]} 12. Nd4 {[%clk 0:02:35.1]} 12... Bh6
{[%clk 0:02:06.4]} 13. Nf3 {[%clk 0:02:29.2]} 13... Qe7 {[%clk 0:02:05.7]} 14.
O-O {[%clk 0:02:25.8]} 14... Bxe3 {[%clk 0:02:05.4]} 15. Re1 {[%clk 0:02:26]}
15... Kf8 {[%clk 0:01:45]} 16. Rxe3 {[%clk 0:02:24.7]} 16... Qf6 {[%clk
0:01:45.7]} 17. Nc3 {[%clk 0:02:08.8]} 17... Nd7 {[%clk 0:01:39.6]} 18. h4
{[%clk 0:01:53.1]} 18... Re8 {[%clk 0:01:08.3]} 19. Qd2 {[%clk 0:01:44.9]} 19...
Nh6 {[%clk 0:01:01.2]} 20. Ng5 {[%clk 0:01:43.3]} 20... Rxe3 {[%clk 0:00:58.1]}
21. Qxe3 {[%clk 0:01:44.2]} 21... d4 {[%clk 0:00:54.9]} 22. Qh3 {[%clk
0:01:44.1]} 22... dxc3 {[%clk 0:00:51.1]} 23. Qxd7 {[%clk 0:01:43.4]} 23... cxb2
{[%clk 0:00:50]} 24. Re1 {[%clk 0:01:41.9]} 24... Kg7 {[%clk 0:00:38.8]} 25.
Qxb7 {[%clk 0:01:06.1]} 25... Ng4 {[%clk 0:00:38.1]} 26. Rf1 {[%clk 0:00:10.5]}
26... Re8 {[%clk 0:00:14.9]} 27. Nxf7 {[%clk 0:00:08.4]} 27... Re7 {[%clk
0:00:15.2]} 28. Qb3 {[%clk 0:00:06.8]} 28... Rxf7 {[%clk 0:00:15.1]} 29. Bc4
{[%clk 0:00:05.8]} 29... Qxh4 {[%clk 0:00:08.3]} 30. Qc3+ {[%clk 0:00:05.9]}
30... Kh7 {[%clk 0:00:06.5]} 31. Qh3 {[%clk 0:00:04.7]} 31... Qxh3 {[%clk
0:00:03.2]} 32. gxh3 {[%clk 0:00:05.6]} 32... Nxf2 {[%clk 0:00:03.3]} 33. Bxf7
{[%clk 0:00:05.1]} 33... Nxh3+ {[%clk 0:00:03.1]} 34. Kh2 {[%clk 0:00:04.8]}
34... Nf4 {[%clk 0:00:03]} 35. Rb1 {[%clk 0:00:04.1]} 35... Kg7 {[%clk
0:00:03.2]} 36. Bb3 {[%clk 0:00:03.4]} 36... Ne2 {[%clk 0:00:02.6]} 37. Rxb2
{[%clk 0:00:04.1]} 37... Nc3 {[%clk 0:00:03.2]} 38. Bc4 {[%clk 0:00:04.3]} 38...
Kf6 {[%clk 0:00:03.4]} 39. Rb7 {[%clk 0:00:05]} 39... g5 {[%clk 0:00:02.5]} 40.
Rxa7 {[%clk 0:00:05.6]} 40... g4 {[%clk 0:00:03.4]} 41. Ra6 {[%clk 0:00:06.1]}
41... Kg5 {[%clk 0:00:03.5]} 42. Rxc6 {[%clk 0:00:06.6]} 42... h4 {[%clk
0:00:04.4]} 43. Rc5+ {[%clk 0:00:06.8]} 43... Kf4 {[%clk 0:00:04.4]} 44. Bf1
{[%clk 0:00:07.5]} 44... Ne4 {[%clk 0:00:04.5]} 45. Rc4 {[%clk 0:00:07.8]} 45...
Ke3 {[%clk 0:00:03.9]} 46. Rxe4+ {[%clk 0:00:07.4]} 46... Kxe4 {[%clk
0:00:04.8]} 47. a4 {[%clk 0:00:08.1]} 1-0

[Event "Late-Titled-Tuesday-Blitz-March-05-2024"]
[Site "Chess.com"]
[Date "2024.03.05"]
[Round "6"]
[White "rionelG"]
[Black "Inepton_Fermion"]
[Result "0-1"]
[WhiteElo "2226"]
[BlackElo "2467"]
[TimeControl "180+1"]
[EndTime "15:05:56 PST"]
[Termination "Inepton_Fermion won by resignation"]

1. e4 {[%clk 0:02:53]} 1... c5 {[%clk 0:03:00.4]} 2. Nf3 {[%clk 0:02:52.9]} 2...
e6 {[%clk 0:03:00.9]} 3. d4 {[%clk 0:02:52]} 3... cxd4 {[%clk 0:03:01.8]} 4.
Nxd4 {[%clk 0:02:52.6]} 4... Nc6 {[%clk 0:03:02.5]} 5. Nc3 {[%clk 0:02:49.4]}
5... Qc7 {[%clk 0:03:01.5]} 6. g3 {[%clk 0:02:48.9]} 6... a6 {[%clk 0:03:01.3]}
7. Bg2 {[%clk 0:02:49.1]} 7... Nge7 {[%clk 0:03:01.7]} 8. O-O {[%clk 0:02:48.3]}
8... Nxd4 {[%clk 0:03:01.9]} 9. Qxd4 {[%clk 0:02:47.9]} 9... Nc6 {[%clk
0:03:02.6]} 10. Qe3 {[%clk 0:02:44.1]} 10... Ne5 {[%clk 0:02:56.6]} 11. h3
{[%clk 0:02:39.9]} 11... b5 {[%clk 0:02:56.4]} 12. Kh2 {[%clk 0:02:19.8]} 12...
h5 {[%clk 0:02:21.9]} 13. Qe2 {[%clk 0:02:16.9]} 13... Bb7 {[%clk 0:02:13.9]}
14. Bf4 {[%clk 0:02:15.1]} 14... Be7 {[%clk 0:02:08.4]} 15. a4 {[%clk
0:01:53.6]} 15... b4 {[%clk 0:02:05.5]} 16. Na2 {[%clk 0:01:53.9]} 16... h4
{[%clk 0:02:04.2]} 17. c3 {[%clk 0:01:52.9]} 17... a5 {[%clk 0:01:45.2]} 18.
cxb4 {[%clk 0:01:45]} 18... axb4 {[%clk 0:01:46.1]} 19. Rfc1 {[%clk 0:01:44.5]}
19... Qb8 {[%clk 0:01:46.2]} 20. Qb5 {[%clk 0:01:30.3]} 20... hxg3+ {[%clk
0:01:33.3]} 21. fxg3 {[%clk 0:01:31.2]} 21... Ng4+ {[%clk 0:01:28.6]} 22. Kh1
{[%clk 0:01:14.5]} 22... Nf2+ {[%clk 0:01:28.4]} 23. Kh2 {[%clk 0:01:13.1]}
23... Ng4+ {[%clk 0:01:15.9]} 24. Kh1 {[%clk 0:01:12.2]} 24... Qa7 {[%clk
0:01:16.5]} 25. Qe2 {[%clk 0:00:52.4]} 25... Nf2+ {[%clk 0:00:56.4]} 26. Kh2
{[%clk 0:00:50]} 26... Ba6 {[%clk 0:00:39]} 27. Qf3 {[%clk 0:00:34.3]} 27... g5
{[%clk 0:00:24.7]} 28. Be3 {[%clk 0:00:32.5]} 28... Qxe3 {[%clk 0:00:24.5]} 29.
Qxe3 {[%clk 0:00:29.8]} 29... Ng4+ {[%clk 0:00:24.6]} 30. Kg1 {[%clk 0:00:30.7]}
30... Nxe3 {[%clk 0:00:25.5]} 31. Rc7 {[%clk 0:00:26.3]} 31... Bd6 {[%clk
0:00:23.1]} 32. Rac1 {[%clk 0:00:16.9]} 32... Bxc7 {[%clk 0:00:22.7]} 33. Rxc7
{[%clk 0:00:17.8]} 33... Nxg2 {[%clk 0:00:17.4]} 34. Kxg2 {[%clk 0:00:16.7]}
34... Rb8 {[%clk 0:00:16.8]} 35. b3 {[%clk 0:00:14.7]} 35... Bd3 {[%clk
0:00:16.5]} 36. Nc1 {[%clk 0:00:13.7]} 36... Bxe4+ {[%clk 0:00:16.4]} 37. Kf2
{[%clk 0:00:14.6]} 37... Ke7 {[%clk 0:00:15.1]} 38. Ke3 {[%clk 0:00:15.5]} 38...
Bd5 {[%clk 0:00:14.1]} 39. Ne2 {[%clk 0:00:16.4]} 39... Rhc8 {[%clk 0:00:13]}
40. Ra7 {[%clk 0:00:16.2]} 40... Ra8 {[%clk 0:00:12.9]} 41. Rxa8 {[%clk
0:00:15.7]} 41... Rxa8 {[%clk 0:00:13.8]} 42. Nd4 {[%clk 0:00:16.5]} 42... Rc8
{[%clk 0:00:14.4]} 43. Kd3 {[%clk 0:00:17]} 43... Rc3+ {[%clk 0:00:14.8]} 44.
Kd2 {[%clk 0:00:17.6]} 44... Rxg3 {[%clk 0:00:15.7]} 45. a5 {[%clk 0:00:16.6]}
45... Rxh3 {[%clk 0:00:15.7]} 46. a6 {[%clk 0:00:15.3]} 46... Bxb3 {[%clk
0:00:16]} 47. Nb5 {[%clk 0:00:12.8]} 47... Bd5 {[%clk 0:00:12.8]} 48. Nc7 {[%clk
0:00:12.3]} 48... Ra3 {[%clk 0:00:11]} 49. Kc2 {[%clk 0:00:10.8]} 49... Ra2+
{[%clk 0:00:08.5]} 50. Kb1 {[%clk 0:00:10.8]} 50... b3 {[%clk 0:00:09.1]} 0-1

[Event "Late-Titled-Tuesday-Blitz-March-05-2024"]
[Site "Chess.com"]
[Date "2024.03.05"]
[Round "6"]
[White "Rutricks"]
[Black "KuzubovYuriy"]
[Result "1-0"]
[WhiteElo "2730"]
[BlackElo "2922"]
[TimeControl "180+1"]
[EndTime "15:05:59 PST"]
[Termination "Rutricks won by resignation"]

1. Nc3 {[%clk 0:02:53.5]} 1... d5 {[%clk 0:02:57.4]} 2. d4 {[%clk 0:02:53.9]}
2... Bf5 {[%clk 0:02:53.1]} 3. f3 {[%clk 0:02:53.7]} 3... Bg6 {[%clk 0:02:51.2]}
4. e4 {[%clk 0:02:53.4]} 4... dxe4 {[%clk 0:02:48.5]} 5. fxe4 {[%clk 0:02:54.3]}
5... e5 {[%clk 0:02:48.6]} 6. Be3 {[%clk 0:02:47.5]} 6... Bb4 {[%clk 0:02:46.4]}
7. Nf3 {[%clk 0:02:34.9]} 7... Nd7 {[%clk 0:02:38.3]} 8. dxe5 {[%clk 0:02:24.3]}
8... Ne7 {[%clk 0:02:27.7]} 9. e6 {[%clk 0:02:17.9]} 9... fxe6 {[%clk
0:02:26.4]} 10. Bc4 {[%clk 0:02:18.6]} 10... Nf8 {[%clk 0:01:52.7]} 11. Bd4
{[%clk 0:01:54.5]} 11... Rg8 {[%clk 0:01:44.3]} 12. Qd3 {[%clk 0:01:47.4]} 12...
c5 {[%clk 0:01:27.9]} 13. Be3 {[%clk 0:00:54.7]} 13... Qxd3 {[%clk 0:01:26.3]}
14. cxd3 {[%clk 0:00:55.6]} 14... Nc6 {[%clk 0:01:14.8]} 15. a3 {[%clk
0:00:55.7]} 15... Ba5 {[%clk 0:00:59.2]} 16. Bxc5 {[%clk 0:00:56]} 16... O-O-O
{[%clk 0:00:50.3]} 17. b4 {[%clk 0:00:31.7]} 17... Bb6 {[%clk 0:00:45.3]} 18.
Bxb6 {[%clk 0:00:30]} 18... axb6 {[%clk 0:00:45.6]} 19. O-O-O {[%clk 0:00:28.4]}
19... Kd7 {[%clk 0:00:35.2]} 20. d4 {[%clk 0:00:25.2]} 20... Rc8 {[%clk
0:00:29.9]} 21. Bb5 {[%clk 0:00:25.5]} 21... Ke7 {[%clk 0:00:25.1]} 22. Kb2
{[%clk 0:00:25.9]} 22... Na7 {[%clk 0:00:23.6]} 23. Bd3 {[%clk 0:00:25.7]} 23...
Nd7 {[%clk 0:00:22.9]} 24. Rhe1 {[%clk 0:00:22.5]} 24... Bh5 {[%clk 0:00:21.5]}
25. Be2 {[%clk 0:00:20.4]} 25... Rgf8 {[%clk 0:00:20.5]} 26. h3 {[%clk
0:00:17.5]} 26... Nc6 {[%clk 0:00:17.9]} 27. Nb5 {[%clk 0:00:17]} 27... Nf6
{[%clk 0:00:15.9]} 28. d5 {[%clk 0:00:16.5]} 28... Bxf3 {[%clk 0:00:15.7]} 29.
gxf3 {[%clk 0:00:14.2]} 29... Ne5 {[%clk 0:00:15.8]} 30. f4 {[%clk 0:00:13.9]}
30... Nc4+ {[%clk 0:00:16.1]} 31. Bxc4 {[%clk 0:00:14.5]} 31... Rxc4 {[%clk
0:00:16.8]} 32. dxe6 {[%clk 0:00:12.8]} 32... Rxe4 {[%clk 0:00:15.2]} 33. Rxe4
{[%clk 0:00:10.8]} 33... Nxe4 {[%clk 0:00:15.4]} 34. Rd7+ {[%clk 0:00:11.3]}
34... Kxe6 {[%clk 0:00:15.8]} 35. Rxg7 {[%clk 0:00:11.7]} 35... Rxf4 {[%clk
0:00:15.3]} 36. Rxh7 {[%clk 0:00:11.9]} 36... Rf2+ {[%clk 0:00:14.3]} 37. Kc1
{[%clk 0:00:12]} 37... Rh2 {[%clk 0:00:13.5]} 38. Rxb7 {[%clk 0:00:11.7]} 38...
Kd5 {[%clk 0:00:13.4]} 39. Rxb6 {[%clk 0:00:09]} 39... Rxh3 {[%clk 0:00:13.6]}
40. Kb2 {[%clk 0:00:06.5]} 40... Kc4 {[%clk 0:00:12.5]} 41. Nd6+ {[%clk
0:00:06.1]} 41... Nxd6 {[%clk 0:00:12.8]} 42. Rxd6 {[%clk 0:00:07]} 42... Rh2+
{[%clk 0:00:13.2]} 43. Kb1 {[%clk 0:00:06.7]} 43... Kb3 {[%clk 0:00:13.5]} 44.
Rd3+ {[%clk 0:00:06.6]} 44... Ka4 {[%clk 0:00:14]} 45. Rc3 {[%clk 0:00:06]}
45... Rg2 {[%clk 0:00:14.3]} 46. Rc2 {[%clk 0:00:06.4]} 46... Rg3 {[%clk
0:00:14.5]} 47. Ra2 {[%clk 0:00:05.7]} 47... Rg1+ {[%clk 0:00:14.9]} 48. Kb2
{[%clk 0:00:05.7]} 48... Rg2+ {[%clk 0:00:12.6]} 49. Kb1 {[%clk 0:00:05.9]}
49... Rg3 {[%clk 0:00:12.7]} 50. Rb2 {[%clk 0:00:05.6]} 50... Kxa3 {[%clk
0:00:11.9]} 51. b5 {[%clk 0:00:05.8]} 51... Rg7 {[%clk 0:00:12.4]} 52. b6 {[%clk
0:00:06.1]} 52... Rb7 {[%clk 0:00:12.6]} 53. Kc2 {[%clk 0:00:06.5]} 53... Ka4
{[%clk 0:00:13.1]} 54. Kc3 {[%clk 0:00:07.3]} 54... Ka5 {[%clk 0:00:13.7]} 55.
Kc4 {[%clk 0:00:08]} 55... Rb8 {[%clk 0:00:12]} 56. Kc5 {[%clk 0:00:08.3]} 56...
Rc8+ {[%clk 0:00:12]} 57. Kd6 {[%clk 0:00:08.8]} 57... Ka6 {[%clk 0:00:11.7]}
58. b7 {[%clk 0:00:08.7]} 58... Rb8 {[%clk 0:00:12.1]} 59. Kc7 {[%clk
0:00:08.8]} 1-0

[Event "Late-Titled-Tuesday-Blitz-March-05-2024"]
[Site "Chess.com"]
[Date "2024.03.05"]
[Round "6"]
[White "Tugrik1969"]
[Black "GlavkonVVS"]
[Result "0-1"]
[WhiteElo "2410"]
[BlackElo "2550"]
[TimeControl "180+1"]
[EndTime "15:06:15 PST"]
[Termination "GlavkonVVS won on time"]

1. d4 {[%clk 0:02:59.9]} 1... Nf6 {[%clk 0:02:59.9]} 2. c4 {[%clk 0:02:59.9]}
2... c5 {[%clk 0:02:59.6]} 3. d5 {[%clk 0:02:59.6]} 3... e6 {[%clk 0:02:59.9]}
4. Nc3 {[%clk 0:02:59.2]} 4... exd5 {[%clk 0:03:00.3]} 5. cxd5 {[%clk
0:03:00.1]} 5... d6 {[%clk 0:03:00.5]} 6. e4 {[%clk 0:03:00.1]} 6... g6 {[%clk
0:03:00.7]} 7. h3 {[%clk 0:03:00.1]} 7... Bg7 {[%clk 0:03:01.2]} 8. Nf3 {[%clk
0:03:00.8]} 8... O-O {[%clk 0:03:01.2]} 9. Bd3 {[%clk 0:03:01.1]} 9... b5 {[%clk
0:03:01.7]} 10. Nxb5 {[%clk 0:03:00.6]} 10... Nxe4 {[%clk 0:03:01.8]} 11. O-O
{[%clk 0:02:58.8]} 11... Ba6 {[%clk 0:02:34.9]} 12. Re1 {[%clk 0:02:34.9]} 12...
Re8 {[%clk 0:02:14.8]} 13. Na3 {[%clk 0:02:00.8]} 13... Bxd3 {[%clk 0:02:05.2]}
14. Qxd3 {[%clk 0:02:01.7]} 14... Nf6 {[%clk 0:02:03.7]} 15. Bf4 {[%clk
0:01:58.1]} 15... Rxe1+ {[%clk 0:01:51.3]} 16. Rxe1 {[%clk 0:01:58]} 16... Nbd7
{[%clk 0:01:43.1]} 17. Bxd6 {[%clk 0:01:48.7]} 17... Nb6 {[%clk 0:01:43]} 18.
Bxc5 {[%clk 0:01:46.4]} 18... Nfxd5 {[%clk 0:01:39.1]} 19. Nc4 {[%clk
0:01:26.5]} 19... Nxc4 {[%clk 0:01:16.8]} 20. Qxc4 {[%clk 0:01:27.4]} 20... Nb6
{[%clk 0:01:12.6]} 21. Qe2 {[%clk 0:01:11.7]} 21... Na4 {[%clk 0:01:09.3]} 22.
Ba3 {[%clk 0:01:09.8]} 22... Rb8 {[%clk 0:01:07.3]} 23. Ne5 {[%clk 0:01:02.1]}
23... Qd5 {[%clk 0:01:00.4]} 24. Qc4 {[%clk 0:00:48.7]} 24... Qxc4 {[%clk
0:00:55.2]} 25. Nxc4 {[%clk 0:00:49.6]} 25... Bf8 {[%clk 0:00:45]} 26. Bxf8
{[%clk 0:00:34.3]} 26... Kxf8 {[%clk 0:00:44.8]} 27. Re2 {[%clk 0:00:28.3]}
27... Rd8 {[%clk 0:00:42.6]} 28. b3 {[%clk 0:00:27.5]} 28... Rd1+ {[%clk
0:00:40.1]} 29. Kh2 {[%clk 0:00:27.1]} 29... Nc3 {[%clk 0:00:40.4]} 30. Rc2
{[%clk 0:00:27]} 30... Ne4 {[%clk 0:00:28.3]} 31. Ne5 {[%clk 0:00:24.5]} 31...
f6 {[%clk 0:00:22.8]} 32. Nc6 {[%clk 0:00:21.9]} 32... a6 {[%clk 0:00:20.4]} 33.
Nb4 {[%clk 0:00:18.1]} 33... Rd6 {[%clk 0:00:17.5]} 34. f3 {[%clk 0:00:15.7]}
34... Ng5 {[%clk 0:00:17.4]} 35. h4 {[%clk 0:00:15]} 35... Ne6 {[%clk 0:00:17]}
36. Rc6 {[%clk 0:00:09.6]} 36... Rxc6 {[%clk 0:00:16.9]} 37. Nxc6 {[%clk
0:00:10.5]} 37... Ke8 {[%clk 0:00:17.2]} 38. Nb4 {[%clk 0:00:10.6]} 38... Nc5
{[%clk 0:00:17]} 39. Kg3 {[%clk 0:00:10.6]} 39... Kd7 {[%clk 0:00:17.6]} 40. Kf4
{[%clk 0:00:10.6]} 40... Kd6 {[%clk 0:00:17.6]} 41. g4 {[%clk 0:00:10.7]} 41...
a5 {[%clk 0:00:17.9]} 42. Nc2 {[%clk 0:00:11]} 42... a4 {[%clk 0:00:18.2]} 43.
bxa4 {[%clk 0:00:10.2]} 43... Nxa4 {[%clk 0:00:18.2]} 44. g5 {[%clk 0:00:08.8]}
44... Ke6 {[%clk 0:00:16.9]} 45. Ke3 {[%clk 0:00:06.4]} 45... fxg5 {[%clk
0:00:15.9]} 46. hxg5 {[%clk 0:00:06.2]} 46... Kf5 {[%clk 0:00:16.4]} 47. f4
{[%clk 0:00:06.3]} 47... Nc3 {[%clk 0:00:16.1]} 48. Nd4+ {[%clk 0:00:06.3]}
48... Kg4 {[%clk 0:00:16.1]} 49. a3 {[%clk 0:00:06.4]} 49... Nd5+ {[%clk
0:00:16.3]} 50. Ke4 {[%clk 0:00:06.8]} 50... Nc3+ {[%clk 0:00:14.3]} 51. Ke5
{[%clk 0:00:06.1]} 51... Kh5 {[%clk 0:00:13.3]} 52. Nf3 {[%clk 0:00:03.5]} 52...
h6 {[%clk 0:00:12.3]} 53. gxh6 {[%clk 0:00:02.8]} 53... Kxh6 {[%clk 0:00:12.8]}
54. Kf6 {[%clk 0:00:02.6]} 54... Kh5 {[%clk 0:00:12.5]} 55. Ne5 {[%clk
0:00:02.6]} 55... Nd5+ {[%clk 0:00:12]} 0-1

[Event "Late-Titled-Tuesday-Blitz-March-05-2024"]
[Site "Chess.com"]
[Date "2024.03.05"]
[Round "6"]
[White "Shtembuliak"]
[Black "rynos0411"]
[Result "1-0"]
[WhiteElo "2853"]
[BlackElo "2641"]
[TimeControl "180+1"]
[EndTime "15:06:21 PST"]
[Termination "Shtembuliak won on time"]

1. c4 {[%clk 0:03:00.9]} 1... Nf6 {[%clk 0:02:59]} 2. Nc3 {[%clk 0:03:00.8]}
2... d6 {[%clk 0:02:53.2]} 3. e4 {[%clk 0:02:59.3]} 3... g6 {[%clk 0:02:53.6]}
4. d4 {[%clk 0:02:59.5]} 4... Bg7 {[%clk 0:02:54.3]} 5. Nge2 {[%clk 0:03:00.1]}
5... O-O {[%clk 0:02:54.9]} 6. Ng3 {[%clk 0:03:00.5]} 6... c5 {[%clk 0:02:54]}
7. d5 {[%clk 0:03:00.6]} 7... e6 {[%clk 0:02:53.6]} 8. Be2 {[%clk 0:03:00.9]}
8... exd5 {[%clk 0:02:53.8]} 9. cxd5 {[%clk 0:03:01.8]} 9... a6 {[%clk
0:02:50.2]} 10. a4 {[%clk 0:03:01.8]} 10... Qc7 {[%clk 0:02:50.8]} 11. O-O
{[%clk 0:03:00.8]} 11... Nbd7 {[%clk 0:02:47.6]} 12. h3 {[%clk 0:03:00.6]} 12...
Rb8 {[%clk 0:02:46.7]} 13. Bg5 {[%clk 0:02:50.5]} 13... c4 {[%clk 0:02:43]} 14.
Qd2 {[%clk 0:02:21.3]} 14... b5 {[%clk 0:02:38.6]} 15. axb5 {[%clk 0:02:21.5]}
15... axb5 {[%clk 0:02:39.5]} 16. b4 {[%clk 0:02:22]} 16... cxb3 {[%clk
0:02:29.7]} 17. Nxb5 {[%clk 0:02:21.8]} 17... Rxb5 {[%clk 0:02:20.4]} 18. Bxb5
{[%clk 0:02:20.6]} 18... Nc5 {[%clk 0:02:20.9]} 19. Bd3 {[%clk 0:01:32.7]} 19...
Nfd7 {[%clk 0:02:15.3]} 20. Rab1 {[%clk 0:01:29.9]} 20... Ne5 {[%clk 0:02:11.4]}
21. Be2 {[%clk 0:01:28.4]} 21... Re8 {[%clk 0:02:07.6]} 22. Be3 {[%clk
0:01:27.2]} 22... Ned7 {[%clk 0:02:03.6]} 23. Rfc1 {[%clk 0:01:21.3]} 23... Qb6
{[%clk 0:01:33.3]} 24. Bd1 {[%clk 0:01:21.3]} 24... b2 {[%clk 0:01:32.4]} 25.
Rc2 {[%clk 0:01:21]} 25... Ba6 {[%clk 0:01:31.6]} 26. Rcxb2 {[%clk 0:01:14.6]}
26... Bxb2 {[%clk 0:01:30.7]} 27. Rxb2 {[%clk 0:01:15.5]} 27... Qc7 {[%clk
0:01:29.4]} 28. Qd4 {[%clk 0:01:08.3]} 28... Qd8 {[%clk 0:01:02]} 29. Be2 {[%clk
0:00:48.9]} 29... Bxe2 {[%clk 0:00:54.2]} 30. Rxe2 {[%clk 0:00:49.8]} 30... Qe7
{[%clk 0:00:54.7]} 31. Bf4 {[%clk 0:00:48.9]} 31... Rb8 {[%clk 0:00:45.6]} 32.
Kh2 {[%clk 0:00:42.6]} 32... Rb3 {[%clk 0:00:43.5]} 33. e5 {[%clk 0:00:40.1]}
33... dxe5 {[%clk 0:00:27.5]} 34. Bxe5 {[%clk 0:00:36.6]} 34... Rd3 {[%clk
0:00:26.8]} 35. Qa1 {[%clk 0:00:34.9]} 35... Nxe5 {[%clk 0:00:18.5]} 36. Rxe5
{[%clk 0:00:33.4]} 36... Qd8 {[%clk 0:00:18.9]} 37. Qe1 {[%clk 0:00:25.4]} 37...
Kg7 {[%clk 0:00:18.9]} 38. Qa1 {[%clk 0:00:19.5]} 38... Kg8 {[%clk 0:00:18.6]}
39. Qe1 {[%clk 0:00:13.4]} 39... Kg7 {[%clk 0:00:18.5]} 40. Qb4 {[%clk
0:00:07.4]} 40... Rxd5 {[%clk 0:00:18.2]} 41. Qc3 {[%clk 0:00:05.3]} 41... Rxe5
{[%clk 0:00:14.8]} 42. Qxe5+ {[%clk 0:00:04.9]} 42... Kg8 {[%clk 0:00:13.9]} 43.
Qxc5 {[%clk 0:00:05.5]} 43... h5 {[%clk 0:00:13.4]} 44. Qc4 {[%clk 0:00:05.2]}
44... h4 {[%clk 0:00:13.3]} 45. Ne4 {[%clk 0:00:04]} 45... Qb8+ {[%clk
0:00:13.8]} 46. g3 {[%clk 0:00:03.3]} 46... hxg3+ {[%clk 0:00:13.2]} 47. Nxg3
{[%clk 0:00:03.9]} 47... Qb2 {[%clk 0:00:12.4]} 48. Qf4 {[%clk 0:00:03.8]} 48...
Kg7 {[%clk 0:00:12.5]} 49. h4 {[%clk 0:00:04.2]} 49... Qc2 {[%clk 0:00:11.3]}
50. h5 {[%clk 0:00:04.4]} 50... gxh5 {[%clk 0:00:10.6]} 51. Nxh5+ {[%clk
0:00:04.3]} 51... Kg6 {[%clk 0:00:11.1]} 52. Ng3 {[%clk 0:00:04.4]} 52... f5
{[%clk 0:00:10.8]} 53. Qd6+ {[%clk 0:00:04]} 53... Kg5 {[%clk 0:00:10.5]} 54.
Qe7+ {[%clk 0:00:03.1]} 54... Kg4 {[%clk 0:00:09.9]} 55. Qe3 {[%clk 0:00:02.9]}
55... f4 {[%clk 0:00:08.1]} 56. Qd4 {[%clk 0:00:03.1]} 56... Qh7+ {[%clk
0:00:05]} 57. Kg2 {[%clk 0:00:03]} 57... Qb7+ {[%clk 0:00:01.6]} 58. Qe4 {[%clk
0:00:03.4]} 58... Qh7 {[%clk 0:00:01.2]} 59. Qxh7 {[%clk 0:00:02.8]} 1-0